{"text_format":"1","workbook":"xlsx","n_sheets":2,"sheets":["お客様記入シート","記入例"],"not_rendered":{"charts":0,"images":31,"macros":1,"external_links":0,"defined_names":2,"comments":2,"pivot_tables":0},"unopened":[],"bounds":{"document_bytes":16777216,"sheet_cells":100000,"rows_first":2000,"rows_last":500,"rows_between":2000,"halvings":0,"cell_chars":16384,"cell_head_chars":4096},"cells_cut":0,"cells_raw":0,"read":"whole","date_system":"1900"}

{"sheet":"お客様記入シート","index":0,"n_rows":51,"n_cols":54,"rows_kept":51,"cut":false,"hidden":false,"merged":[[11,1,12,6],[11,7,11,11],[11,12,11,44],[12,7,12,11],[12,12,12,44],[14,1,14,44],[19,26,19,32],[21,15,21,18],[21,20,21,23],[21,25,21,43],[7,1,7,11],[7,12,7,44],[8,1,9,11],[8,12,9,27],[8,28,8,31],[8,32,8,44],[9,28,9,31],[9,32,9,44],[1,47,1,49],[2,47,2,49],[3,47,3,49],[4,1,4,44],[6,1,6,11],[6,12,6,44],[10,1,10,11],[10,12,10,27],[10,28,10,31],[10,32,10,44],[15,1,23,1],[15,2,23,7],[15,8,15,14],[15,15,15,44],[18,8,18,14],[19,8,19,14],[19,33,19,44],[20,8,20,14],[20,15,20,18],[20,20,20,23],[20,24,20,44],[21,8,21,14],[16,8,16,14],[16,15,16,44],[17,8,17,14],[17,15,17,44],[18,15,18,25],[18,26,18,32],[18,33,18,44],[19,15,19,25],[29,15,29,29],[30,15,30,29],[23,8,23,14],[23,15,23,44],[25,8,26,14],[24,8,24,14],[24,15,24,19],[24,21,24,24],[25,30,25,44],[26,30,26,44],[26,15,26,29],[25,15,25,29],[24,28,24,44],[24,1,36,1],[24,2,36,7],[35,8,35,14],[41,2,41,14],[41,15,41,44],[28,8,28,14],[29,8,29,14],[30,8,30,14],[27,8,27,14],[31,8,31,14],[32,8,32,14],[39,2,39,14],[39,15,39,19],[39,21,39,24],[39,25,39,44],[40,2,40,14],[31,30,31,44],[32,30,32,44],[31,15,31,29],[32,15,32,29],[35,15,35,26],[35,27,35,44],[36,8,36,14],[36,15,36,44],[45,2,45,44],[38,29,38,43],[22,8,22,14],[22,15,22,43],[33,8,33,14],[33,15,33,29],[33,30,33,44],[34,8,34,14],[34,15,34,29],[34,30,34,44],[40,15,40,44],[38,2,38,14],[38,15,38,19],[38,21,38,24],[37,2,37,14],[37,15,37,19],[37,21,37,24],[37,25,37,44],[27,30,27,44],[28,30,28,44],[29,30,29,44],[30,30,30,44],[27,15,27,29],[28,15,28,29]]}
[]
[null,null,null,null,null,null,null,null,null,null,null,null,null,null,null,null,null,null,null,null,null,null,null,null,null,null,null,null,null,null,null,null,null,null,null,null,null,null,null,null,null,null,null,null,"第1分析センター 分析1課",null,{"$f":"#REF!","v":{"$error":"#REF!"}},{"$f":"#REF!","v":{"$error":"#REF!"}}]
[null,null,null,null,null,null,null,null,null,null,null,null,null,null,null,null,null,null,null,null,null,null,null,null,null,null,null,null,null,null,null,null,null,null,null,null,null,null,null,null,null,null,null,null,"〒739-0622 広島県大竹市晴海2丁目10番22号",null,{"$f":"#REF!","v":{"$error":"#REF!"}},{"$f":"#REF!","v":{"$error":"#REF!"}}]
[null,null,null,null,null,null,null,null,null,null,null,null,null,null,null,null,null,null,null,null,null,null,null,null,null,null,null,null,null,null,null,null,null,null,null,null,null,null,null,null,null,null,null,null,"TEL：(0827)59-1800　FAX：(0827)59-1805",null,{"$f":"#REF!","v":{"$error":"#REF!"}},{"$f":"#REF!","v":{"$error":"#REF!"}},null,null,"(mg/kg)",null,null,"(torr)"]
[null,"沸点・蒸気圧測定　お客様入力シート",null,null,null,null,null,null,null,null,null,null,null,null,null,null,null,null,null,null,null,null,null,null,null,null,null,null,null,null,null,null,null,null,null,null,null,null,null,null,null,null,null,null,null,null,null,null,null,null,"(wt %)",null,null,"(mmHg)"]
[null,"■お客様情報",null,null,null,null,null,null,null,null,null,null,null,null,null,null,null,null,null,null,null,null,null,null,null,null,null,null,null,null,null,null,null,null,null,null,null,null,null,null,null,null,null,null,null,null,null,null,null,null,"(mol %)",null,null,"(kPa)"]
[null,"貴社名"]
[null,"部署名"]
[null,"お名前",null,null,null,null,null,null,null,null,null,null,null,null,null,null,null,null,null,null,null,null,null,null,null,null,null,null,"電話番号"]
[null,null,null,null,null,null,null,null,null,null,null,null,null,null,null,null,null,null,null,null,null,null,null,null,null,null,null,null,"FAX番号"]
[null,"ふりがな",null,null,null,null,null,null,null,null,null,null,null,null,null,null,null,null,null,null,null,null,null,null,null,null,null,null,"E-mail"]
[null,"所属先住所",null,null,null,null,null,"郵便番号"]
[null,null,null,null,null,null,null,"住所"]
[]
[null,"■蒸気圧・沸点測定に関する情報　　　　※出来るだけ具体的にご記入ください。"]
[null,1,"測定試料の\n情報",null,null,null,null,null,"化合物名",null,null,null,null,null,null,null,null,null,null,null,null,null,null,null,null,null,null,null,null,null,null,null,null,null,null,null,null,null,null,null,null,null,null,null,null,null,null,null,null,null,null,{"$f":"C16","v":"測定試料の\n情報"},{"$f":"P16","v":0}]
[null,null,null,null,null,null,null,null,"CAS番号"]
[null,null,null,null,null,null,null,null,"化合物の種類"]
[null,null,null,null,null,null,null,null,"融点(℃)",null,null,null,null,null,null,null,null,null,null,null,null,null,null,null,null,null,"分子量(g/mol)",null,null,null,null,null,null,null,null,null,null,null,null,null,null,null,null,null,null,null,null,null,null,null,null,{"$f":"#REF!","v":{"$error":"#REF!"}},{"$f":"#REF!","v":{"$error":"#REF!"}}]
[null,null,null,null,null,null,null,null,"沸点(℃)",null,null,null,null,null,null,null,null,null,null,null,null,null,null,null,null,null,"密度(g/cm3)"]
[null,null,null,null,null,null,null,null,"MSDSの有無",null,null,null,null,null,null,null,null,null,null,"・"]
[null,null,null,null,null,null,null,null,"安定性　※1",null,null,null,null,null,null,null,null,null,null,"・",null,null,null,null,"（",null,null,null,null,null,null,null,null,null,null,null,null,null,null,null,null,null,null,null,"）"]
[null,null,null,null,null,null,null,null,"毒劇物の指定",null,null,null,null,null,null,null,null,null,null,"・",null,null,null,null,"・",null,null,null,null,null,null,null,null,null,null,null,null,null,null,null,null,null,null,null,null,null,false,false,false]
[null,null,null,null,null,null,null,null,"その他"]
[null,2,"測定条件\n※2",null,null,null,null,null,"指定する条件",null,null,null,null,null,null,null,null,null,null,null,"・",null,null,null,null,null,null,null,"※原則は蒸気圧コントロールとなりますが、温度をご希望の場合、ご相談させて下さい。",null,null,null,null,null,null,null,null,null,null,null,null,null,null,null,null,null,false,false]
[null,null,null,null,null,null,null,null,"条件No.",null,null,null,null,null,null,"蒸気圧",null,null,null,null,null,null,null,null,null,null,null,null,null,null,"温度"]
[null,null,null,null,null,null,null,null,null,null,null,null,null,null,null,"(torr)",null,null,null,null,null,null,null,null,null,null,null,null,null,null,"(℃)"]
[null,null,null,null,null,null,null,null,1,null,null,null,null,null,null,{"$f":"IF($AU$25=FALSE,\"-\",\"\")","v":"-"},null,null,null,null,null,null,null,null,null,null,null,null,null,null,{"$f":"IF($AV$25=FALSE,\"-\",\"\")","v":"-"}]
[null,null,null,null,null,null,null,null,2,null,null,null,null,null,null,{"$f":"IF($AU$25=FALSE,\"-\",\"\")","v":"-"},null,null,null,null,null,null,null,null,null,null,null,null,null,null,{"$f":"IF($AV$25=FALSE,\"-\",\"\")","v":"-"}]
[null,null,null,null,null,null,null,null,3,null,null,null,null,null,null,"-",null,null,null,null,null,null,null,null,null,null,null,null,null,null,"-"]
[null,null,null,null,null,null,null,null,4,null,null,null,null,null,null,"-",null,null,null,null,null,null,null,null,null,null,null,null,null,null,"-"]
[null,null,null,null,null,null,null,null,5,null,null,null,null,null,null,"-",null,null,null,null,null,null,null,null,null,null,null,null,null,null,"-"]
[null,null,null,null,null,null,null,null,6,null,null,null,null,null,null,"-",null,null,null,null,null,null,null,null,null,null,null,null,null,null,"-"]
[null,null,null,null,null,null,null,null,7,null,null,null,null,null,null,"-",null,null,null,null,null,null,null,null,null,null,null,null,null,null,"-"]
[null,null,null,null,null,null,null,null,8,null,null,null,null,null,null,"-",null,null,null,null,null,null,null,null,null,null,null,null,null,null,"-"]
[null,null,null,null,null,null,null,null,"ｺﾝﾃﾞﾝｻｰ温度(℃)",null,null,null,null,null,null,null,null,null,null,null,null,null,null,null,null,null,null,"※凝固点がある物質の場合、凝固点以上に設定する必要があります。"]
[null,null,null,null,null,null,null,null,"その他"]
[null,3,"2層分離の有無",null,null,null,null,null,null,null,null,null,null,null,null,null,null,null,null,null,"・"]
[null,4,"原料提供の有無　※3",null,null,null,null,null,null,null,null,null,null,null,null,null,null,null,null,null,"・",null,null,null,null,null,null,null,"(",null,null,null,null,null,null,null,null,null,null,null,null,null,null,null,"）",null,null,null,null,null,null,null,null,"・"]
[null,5,"測定終了後の釜残液の返却",null,null,null,null,null,null,null,null,null,null,null,null,null,null,null,null,null,"・"]
[null,6,"ご希望納期　※4"]
[null,7,"その他特記事項"]
[null,"■ 注意事項"]
[null,null,"※1　分解や異常反応が認められた場合及び、作業員の安全を確保できないと判断される場合は測定を中断させていただく場合があります。"]
[null,null,"※2　沸点・蒸気圧測定は原則、1日1実験(5測定点)で対応させて頂きます。(測定時間及び装置分解洗浄時間を含む)"]
[null,null,"※3　原液の必要量について、1実験(5測定点)あたり約100mL必要です。"]
[null,null,"※4　沸点・蒸気圧測定の納期は1実験(5測定点)の場合、通常7営業日となります。お急ぎの場合は別途ご相談させていただきます。"]
[null,null,"※　　測定範囲は10mmHg(1.33kPa)～大気圧間で、沸点が40℃～200℃である物質のみ可能　融点は60℃程度まで"]
[null,null,"※　  測定中に問題が発生した場合は速やかにご連絡致します。"]
[null,null,"※　  重合、分解、異常反応が認められた場合は測定を中断する場合があります。"]
[null,null,"※　  重合等による装置破損または摺合せ外しが発生した場合は別途料金が発生する場合があります。"]

{"sheet":"記入例","index":1,"n_rows":51,"n_cols":54,"rows_kept":51,"cut":false,"hidden":false,"merged":[[7,1,7,11],[7,12,7,44],[8,1,9,11],[8,12,9,27],[8,28,8,31],[8,32,8,44],[9,28,9,31],[9,32,9,44],[1,47,1,49],[2,47,2,49],[3,47,3,49],[4,1,4,44],[6,1,6,11],[6,12,6,44],[10,1,10,11],[10,12,10,27],[10,28,10,31],[10,32,10,44],[11,1,12,6],[11,7,11,11],[11,12,11,44],[12,7,12,11],[12,12,12,44],[14,1,14,44],[15,1,23,1],[15,2,23,7],[15,8,15,14],[15,15,15,44],[16,8,16,14],[16,15,16,44],[17,8,17,14],[17,15,17,44],[18,8,18,14],[20,8,20,14],[20,15,20,18],[20,20,20,23],[20,24,20,44],[21,8,21,14],[21,15,21,18],[21,20,21,23],[21,25,21,43],[18,15,18,25],[18,26,18,32],[18,33,18,44],[19,8,19,14],[19,15,19,25],[19,26,19,32],[19,33,19,44],[22,8,22,14],[22,15,22,43],[23,8,23,14],[23,15,23,44],[24,1,36,1],[24,2,36,7],[24,8,24,14],[24,15,24,19],[24,21,24,24],[24,28,24,44],[28,8,28,14],[28,15,28,29],[28,30,28,44],[29,8,29,14],[29,15,29,29],[29,30,29,44],[25,8,26,14],[25,15,25,29],[25,30,25,44],[26,15,26,29],[26,30,26,44],[27,8,27,14],[27,15,27,29],[27,30,27,44],[32,8,32,14],[32,15,32,29],[32,30,32,44],[33,8,33,14],[33,15,33,29],[33,30,33,44],[30,8,30,14],[30,15,30,29],[30,30,30,44],[31,8,31,14],[31,15,31,29],[31,30,31,44],[36,8,36,14],[36,15,36,44],[37,2,37,14],[37,15,37,19],[37,21,37,24],[37,25,37,44],[34,8,34,14],[34,15,34,29],[34,30,34,44],[35,8,35,14],[35,15,35,26],[35,27,35,44],[40,2,40,14],[40,15,40,44],[41,2,41,14],[41,15,41,44],[45,2,45,44],[38,2,38,14],[38,15,38,19],[38,21,38,24],[38,29,38,43],[39,2,39,14],[39,15,39,19],[39,21,39,24],[39,25,39,44]]}
[]
[null,null,null,null,null,null,null,null,null,null,null,null,null,null,null,null,null,null,null,null,null,null,null,null,null,null,null,null,null,null,null,null,null,null,null,null,null,null,null,null,null,null,null,null,"第1分析センター 分析1課",null,{"$f":"#REF!","v":{"$error":"#REF!"}},{"$f":"#REF!","v":{"$error":"#REF!"}}]
[null,null,null,null,null,null,null,null,null,null,null,null,null,null,null,null,null,null,null,null,null,null,null,null,null,null,null,null,null,null,null,null,null,null,null,null,null,null,null,null,null,null,null,null,"〒739-0622 広島県大竹市晴海2丁目10番22号",null,{"$f":"#REF!","v":{"$error":"#REF!"}},{"$f":"#REF!","v":{"$error":"#REF!"}}]
[null,null,null,null,null,null,null,null,null,null,null,null,null,null,null,null,null,null,null,null,null,null,null,null,null,null,null,null,null,null,null,null,null,null,null,null,null,null,null,null,null,null,null,null,"TEL：(0827)59-1800　FAX：(0827)59-1805",null,{"$f":"#REF!","v":{"$error":"#REF!"}},{"$f":"#REF!","v":{"$error":"#REF!"}},null,null,"(mg/kg)",null,null,"(torr)"]
[null,"沸点・蒸気圧測定　お客様入力シート",null,null,null,null,null,null,null,null,null,null,null,null,null,null,null,null,null,null,null,null,null,null,null,null,null,null,null,null,null,null,null,null,null,null,null,null,null,null,null,null,null,null,null,null,null,null,null,null,"(wt %)",null,null,"(mmHg)"]
[null,"■お客様情報",null,null,null,null,null,null,null,null,null,null,null,null,null,null,null,null,null,null,null,null,null,null,null,null,null,null,null,null,null,null,null,null,null,null,null,null,null,null,null,null,null,null,null,null,null,null,null,null,"(mol %)",null,null,"(kPa)"]
[null,"貴社名",null,null,null,null,null,null,null,null,null,null,"株式会社アサヒテクノリサーチ"]
[null,"部署名",null,null,null,null,null,null,null,null,null,null,"第1分析センター分析1課"]
[null,"お名前",null,null,null,null,null,null,null,null,null,null,"旭　太郎",null,null,null,null,null,null,null,null,null,null,null,null,null,null,null,"電話番号",null,null,null,"0827-59-1800"]
[null,null,null,null,null,null,null,null,null,null,null,null,null,null,null,null,null,null,null,null,null,null,null,null,null,null,null,null,"FAX番号",null,null,null,"0827-59-1805"]
[null,"ふりがな",null,null,null,null,null,null,null,null,null,null,"あさひ　たろう",null,null,null,null,null,null,null,null,null,null,null,null,null,null,null,"E-mail",null,null,null,"○○○△△@.□□□.jp"]
[null,"所属先住所",null,null,null,null,null,"郵便番号",null,null,null,null,"739-0622"]
[null,null,null,null,null,null,null,"住所",null,null,null,null,"広島県大竹市晴海2-10-22"]
[]
[null,"■蒸気圧・沸点測定に関する情報　　　　※出来るだけ具体的にご記入ください。"]
[null,1,"測定試料の\n情報",null,null,null,null,null,"化合物名",null,null,null,null,null,null,"成分C",null,null,null,null,null,null,null,null,null,null,null,null,null,null,null,null,null,null,null,null,null,null,null,null,null,null,null,null,null,null,null,null,null,null,null,{"$f":"C16","v":"測定試料の\n情報"},{"$f":"P16","v":"成分C"}]
[null,null,null,null,null,null,null,null,"CAS番号",null,null,null,null,null,null,"3333-3333"]
[null,null,null,null,null,null,null,null,"化合物の種類",null,null,null,null,null,null,"有機ハロゲン化合物"]
[null,null,null,null,null,null,null,null,"融点(℃)",null,null,null,null,null,null,10,null,null,null,null,null,null,null,null,null,null,"分子量(g/mol)",null,null,null,null,null,null,150,null,null,null,null,null,null,null,null,null,null,null,null,null,null,null,null,null,{"$f":"#REF!","v":{"$error":"#REF!"}},{"$f":"#REF!","v":{"$error":"#REF!"}}]
[null,null,null,null,null,null,null,null,"沸点(℃)",null,null,null,null,null,null,160,null,null,null,null,null,null,null,null,null,null,"密度(g/cm3)",null,null,null,null,null,null,1.31]
[null,null,null,null,null,null,null,null,"MSDSの有無",null,null,null,null,null,null,null,null,null,null,"・"]
[null,null,null,null,null,null,null,null,"安定性　※1",null,null,null,null,null,null,null,null,null,null,"・",null,null,null,null,"（",null,null,null,null,null,null,null,null,null,null,null,null,null,null,null,null,null,null,null,"）"]
[null,null,null,null,null,null,null,null,"毒劇物の指定",null,null,null,null,null,null,null,null,null,null,"・",null,null,null,null,"・",null,null,null,null,null,null,null,null,null,null,null,null,null,null,null,null,null,null,null,null,null,false,false,false]
[null,null,null,null,null,null,null,null,"その他",null,null,null,null,null,null,"(1)150℃以上で分解する可能性あり\n(2)感光性があるため冷暗所で保管する必要あり"]
[null,2,"測定条件\n※2",null,null,null,null,null,"指定する条件",null,null,null,null,null,null,null,null,null,null,null,"・",null,null,null,null,null,null,null,"※原則は蒸気圧コントロールとなりますが、温度をご希望の場合、ご相談させて下さい。",null,null,null,null,null,null,null,null,null,null,null,null,null,null,null,null,null,true,false]
[null,null,null,null,null,null,null,null,"条件No.",null,null,null,null,null,null,"蒸気圧",null,null,null,null,null,null,null,null,null,null,null,null,null,null,"温度"]
[null,null,null,null,null,null,null,null,null,null,null,null,null,null,null,"(torr)",null,null,null,null,null,null,null,null,null,null,null,null,null,null,"(℃)"]
[null,null,null,null,null,null,null,null,1,null,null,null,null,null,null,10,null,null,null,null,null,null,null,null,null,null,null,null,null,null,{"$f":"IF($AV$25=FALSE,\"-\",\"\")","v":"-"}]
[null,null,null,null,null,null,null,null,2,null,null,null,null,null,null,50,null,null,null,null,null,null,null,null,null,null,null,null,null,null,{"$f":"IF($AV$25=FALSE,\"-\",\"\")","v":"-"}]
[null,null,null,null,null,null,null,null,3,null,null,null,null,null,null,100,null,null,null,null,null,null,null,null,null,null,null,null,null,null,"-"]
[null,null,null,null,null,null,null,null,4,null,null,null,null,null,null,300,null,null,null,null,null,null,null,null,null,null,null,null,null,null,"-"]
[null,null,null,null,null,null,null,null,5,null,null,null,null,null,null,760,null,null,null,null,null,null,null,null,null,null,null,null,null,null,"-"]
[null,null,null,null,null,null,null,null,6,null,null,null,null,null,null,{"$f":"IF($AU$25=FALSE,\"-\",\"\")","v":""},null,null,null,null,null,null,null,null,null,null,null,null,null,null,"-"]
[null,null,null,null,null,null,null,null,7,null,null,null,null,null,null,"",null,null,null,null,null,null,null,null,null,null,null,null,null,null,"-"]
[null,null,null,null,null,null,null,null,8,null,null,null,null,null,null,"",null,null,null,null,null,null,null,null,null,null,null,null,null,null,"-"]
[null,null,null,null,null,null,null,null,"ｺﾝﾃﾞﾝｻｰ温度(℃)",null,null,null,null,null,null,12,null,null,null,null,null,null,null,null,null,null,null,"※凝固点がある物質の場合、凝固点以上に設定する必要があります。"]
[null,null,null,null,null,null,null,null,"その他"]
[null,3,"2層分離の有無",null,null,null,null,null,null,null,null,null,null,null,null,null,null,null,null,null,"・"]
[null,4,"原料提供の有無　※3",null,null,null,null,null,null,null,null,null,null,null,null,null,null,null,null,null,"・",null,null,null,null,null,null,null,"(",null,null,null,null,null,null,null,null,null,null,null,null,null,null,null,"）",null,null,null,null,null,null,null,null,"・"]
[null,5,"測定終了後の釜残液の返却",null,null,null,null,null,null,null,null,null,null,null,null,null,null,null,null,null,"・"]
[null,6,"ご希望納期　※4",null,null,null,null,null,null,null,null,null,null,null,null,"試薬到着後1週間を希望"]
[null,7,"その他特記事項"]
[null,"■ 注意事項"]
[null,null,"※1　分解や異常反応が認められた場合及び、作業員の安全を確保できないと判断される場合は測定を中断させていただく場合があります。"]
[null,null,"※2　沸点・蒸気圧測定は原則、1日1実験(5測定点)で対応させて頂きます。(測定時間及び装置分解洗浄時間を含む)"]
[null,null,"※3　原液の必要量について、1実験(5測定点)あたり約100mL必要です。"]
[null,null,"※4　沸点・蒸気圧測定の納期は1実験(5測定点)の場合、通常7営業日となります。お急ぎの場合は別途ご相談させていただきます。"]
[null,null,"※　　測定範囲は10mmHg(1.33kPa)～大気圧間で、沸点が40℃～200℃である物質のみ可能　融点は60℃程度まで"]
[null,null,"※　  測定中に問題が発生した場合は速やかにご連絡致します。"]
[null,null,"※　  重合、分解、異常反応が認められた場合は測定を中断する場合があります。"]
[null,null,"※　  重合等による装置破損または摺合せ外しが発生した場合は別途料金が発生する場合があります。"]